{"text_format":"1","workbook":"xlsx","n_sheets":4,"sheets":["Public Service SET UP","Public Service COMPLETION","Validation","Data Validation"],"not_rendered":{"charts":0,"images":0,"macros":0,"external_links":1,"defined_names":61,"comments":2,"pivot_tables":0},"unopened":[],"bounds":{"document_bytes":16777216,"sheet_cells":100000,"rows_first":2000,"rows_last":500,"rows_between":2000,"halvings":0,"cell_chars":16384,"cell_head_chars":4096},"cells_cut":0,"cells_raw":0,"read":"whole","date_system":"1900"}

{"sheet":"Public Service SET UP","index":0,"n_rows":308,"n_cols":91,"rows_kept":308,"cut":false,"hidden":false,"merged":[[290,12,305,78],[275,37,275,65],[265,14,265,35],[250,65,253,76],[243,65,243,76],[4,93,4,103],[1,81,105,83],[106,81,226,83],[227,81,305,83],[288,12,289,58],[243,53,243,63],[250,14,253,33],[255,14,255,63],[284,52,286,65],[273,67,273,76],[269,37,269,65],[271,37,271,65],[273,37,273,65],[271,67,271,76],[257,65,257,76],[255,65,255,76],[277,37,277,65],[273,14,273,35],[269,14,269,35],[307,11,308,79],[281,67,281,76],[281,55,281,65],[279,67,279,76],[159,21,160,27],[162,21,163,27],[165,21,166,27],[162,13,163,19],[279,37,279,65],[277,67,277,76],[201,39,202,57],[201,59,202,65],[165,13,166,19],[168,13,169,19],[171,13,172,19],[275,67,275,76],[246,13,248,26],[232,51,234,76],[236,65,239,76],[284,67,286,76],[261,13,263,35],[277,14,277,35],[279,14,279,35],[275,14,275,35],[271,14,271,35],[269,67,269,76],[42,18,44,53],[49,13,50,43],[48,13,48,43],[241,65,241,76],[267,14,267,35],[267,67,267,76],[265,37,265,65],[265,67,265,76],[154,13,154,27],[154,65,154,77],[168,21,169,27],[171,21,172,27],[228,53,230,79],[228,18,230,52],[206,53,208,79],[210,43,211,56],[201,28,202,34],[221,50,222,54],[221,38,222,42],[174,21,175,27],[267,37,267,65],[64,47,64,63],[54,13,54,43],[55,13,56,43],[60,13,60,43],[61,47,62,77],[61,13,62,43],[210,13,211,25],[221,29,222,33],[220,13,223,27],[217,50,218,54],[217,38,218,42],[217,29,218,33],[217,13,218,27],[214,47,215,58],[214,37,215,43],[214,29,215,33],[214,13,215,25],[154,51,154,57],[137,13,138,29],[86,36,88,77],[133,13,134,23],[129,53,131,79],[129,11,131,17],[129,18,131,52],[154,58,154,64],[154,48,154,50],[228,11,230,17],[241,14,241,63],[257,53,257,63],[232,13,234,21],[236,14,239,33],[206,11,208,17],[206,18,208,52],[192,13,193,19],[192,21,193,27],[195,13,196,19],[195,21,196,27],[174,13,175,19],[156,29,157,77],[159,13,160,19],[198,13,199,19],[201,13,202,26],[1,55,3,60],[7,56,8,79],[12,11,14,54],[16,11,28,54],[25,73,27,79],[4,11,4,79],[12,73,13,79],[7,11,10,54],[9,56,11,79],[1,11,3,22],[1,23,3,52],[1,61,3,79],[25,56,27,62],[28,56,30,79],[21,56,23,62],[5,11,5,79],[11,11,11,36],[15,73,18,79],[12,64,13,68],[12,56,13,63],[15,56,18,63],[12,70,13,72],[15,70,18,72],[15,64,18,68],[21,63,23,67],[21,69,23,72],[21,73,23,79],[25,63,27,67],[25,69,27,72],[34,11,35,20],[36,11,37,20],[36,30,37,54],[38,30,40,54],[34,47,34,54],[38,11,38,20],[34,22,35,28],[36,22,36,28],[38,22,39,28],[40,22,40,28],[34,56,34,79],[31,63,31,79],[31,56,31,62],[31,11,31,54],[32,56,32,62],[32,63,32,79],[34,30,34,46],[35,30,35,46],[39,11,40,14],[137,31,138,77],[140,31,147,77],[140,13,140,29],[198,21,199,27],[177,13,178,19],[177,21,178,27],[180,13,181,19],[180,21,181,27],[183,13,184,19],[183,21,184,27],[186,13,187,19],[186,21,187,27],[189,13,190,19],[189,21,190,27],[150,53,152,79],[150,18,152,52],[150,11,152,17],[124,54,126,61],[79,52,80,59],[72,18,74,53],[72,54,74,79],[76,29,76,77],[112,13,113,47],[78,52,78,59],[98,13,105,77],[124,65,125,66],[124,13,125,35],[124,38,126,46],[83,13,83,34],[108,11,110,17],[86,13,86,34],[87,13,87,34],[96,29,97,39],[124,62,125,64],[119,12,121,23],[82,13,82,34],[108,53,110,79],[108,18,110,52],[120,56,121,77],[76,13,76,28],[118,13,118,29],[79,38,80,50],[79,65,80,73],[51,47,51,77],[52,47,53,77],[46,13,46,43],[36,56,37,67],[36,68,37,79],[58,13,59,77],[72,11,74,17],[79,13,80,36],[54,65,54,77],[55,47,56,63],[54,47,54,63],[49,47,50,77],[65,46,65,63],[64,65,64,77],[64,36,64,44],[64,13,64,30],[65,65,65,77],[65,36,65,44],[51,13,51,43],[52,13,53,43],[60,47,60,76],[55,65,56,77],[90,13,90,34],[120,24,121,47],[78,61,78,77],[78,13,78,36],[83,36,83,59],[35,47,35,54],[35,56,35,67],[35,68,35,79],[82,36,82,59],[82,61,82,77],[83,61,83,77],[118,57,118,66],[118,45,118,56],[96,13,97,28],[65,13,65,34],[46,47,46,51],[46,53,46,77],[42,11,44,17],[48,47,48,77],[67,15,68,36],[42,54,44,79],[67,13,68,14],[78,38,78,47],[39,15,40,20]]}
[]
[null,null,null,null,null,null,null,null,null,null,null,"Jurisdiction Name:",null,null,null,null,null,null,null,null,null,null,null,null,null,null,null,null,null,null,null,null,null,null,null,null,null,null,null,null,null,null,null,null,null,null,null,null,null,null,null,null,null,null,null,"Contract #",null,null,null,null,null,null,null,null,null,null,null,null,null,null,null,null,null,null,null,null,null,null,null,null,null,"Page 1"]
[]
[]
[null,null,null,null,null,null,null,null,null,null,null,"STATE OF CALIFORNIA - CDBG PROGRAM\nCDBG Program"]
[null,null,null,null,null,null,null,null,null,null,null,"Project Setup & Completion Report"]
[]
[null,null,null,null,null,null,null,null,null,null,null,"Public Service",null,null,null,null,null,null,null,null,null,null,null,null,null,null,null,null,null,null,null,null,null,null,null,null,null,null,null,null,null,null,null,null,null,null,null,null,null,null,null,null,null,null,null,null,"HCD USE ONLY"]
[]
[null,null,null,null,null,null,null,null,null,null,null,null,null,null,null,null,null,null,null,null,null,null,null,null,null,null,null,null,null,null,null,null,null,null,null,null,null,null,null,null,null,null,null,null,null,null,null,null,null,null,null,null,null,null,null,null,"Project Report"]
[]
[]
[null,null,null,null,null,null,null,null,null,null,null,"Complete this form as a Setup Report, a Completion Report or a Setup and Completion Report and submit electronically to your Contract Management Representative.",null,null,null,null,null,null,null,null,null,null,null,null,null,null,null,null,null,null,null,null,null,null,null,null,null,null,null,null,null,null,null,null,null,null,null,null,null,null,null,null,null,null,null,null,"Cont Mgr Int.",null,null,null,null,null,null,null,null,null,null,null,null,null,"Date"]
[]
[]
[null,null,null,null,null,null,null,null,null,null,null,null,null,null,null,null,null,null,null,null,null,null,null,null,null,null,null,null,null,null,null,null,null,null,null,null,null,null,null,null,null,null,null,null,null,null,null,null,null,null,null,null,null,null,null,null,"Mgnt Rep Int.",null,null,null,null,null,null,null,null,null,null,null,null,null,"Date"]
[null,null,null,null,null,null,null,null,null,null,null,"Department of Housing and Community Development\nContract Management \nP.O. Box 952054\nSacramento CA, 94252-2054"]
[]
[]
[]
[]
[null,null,null,null,null,null,null,null,null,null,null,null,null,null,null,null,null,null,null,null,null,null,null,null,null,null,null,null,null,null,null,null,null,null,null,null,null,null,null,null,null,null,null,null,null,null,null,null,null,null,null,null,null,null,null,null,"FRED Mgr Int.",null,null,null,null,null,null,null,null,null,null,null,null,"Date"]
[]
[]
[]
[null,null,null,null,null,null,null,null,null,null,null,null,null,null,null,null,null,null,null,null,null,null,null,null,null,null,null,null,null,null,null,null,null,null,null,null,null,null,null,null,null,null,null,null,null,null,null,null,null,null,null,null,null,null,null,null,"FRED Rep Int.",null,null,null,null,null,null," ",null,null,null,null,null,"Date:"]
[]
[]
[null,null,null,null,null,null,null,null,null,null,null,null,null,null,null,null,null,null,null,null,null,null,null,null,null,null,null,null,null,null,null,null,null,null,null,null,null,null,null,null,null,null,null,null,null,null,null,null,null,null,null,null,null,null,null,null,"P r o g r a m      I n c o m e"]
[]
[]
[null,null,null,null,null,null,null,null,null,null,null,"All CDBG funds used in this project",null,null,null,null,null,null,null,null,null,null,null,null,null,null,null,null,null,null,null,null,null,null,null,null,null,null,null,null,null,null,null,null,null,null,null,null,null,null,null,null,null,null,null,null,"PI Receipt #"]
[null,null,null,null,null,null,null,null,null,null,null,null,null,null,null,null,null,null,null,null,null,null,null,null,null,null,null,null,null,null,null,null,null,null,null,null,null,null,null,null,null,null,null,null,null,null,null,null,null,null,null,null,null,null,null,null,"PI Voucher #"]
[]
[null,null,null,null,null,null,null,null,null,null,null,"Type of Report and Action",null,null,null,null,null,null,null,null,null,null,"Project Start Date",null,null,null,null,null,null,null,"Proposed completion MM/YY",null,null,null,null,null,null,null,null,null,null,null,null,null,null,null,null,null,null,null,null,null,null,null,null,null,"HCD Assigned Numbers"]
[null,null,null,null,null,null,null,null,null,null,null,null,null,null,null,null,null,null,null,null,null,null,null,null,null,null,null,null,null,null,"Proposed # of Beneficiaries",null,null,null,null,null,null,null,null,null,null,null,null,null,null,null,null,null,null,null,null,null,null,null,null,null,"CDBG Project Number",null,null,null,null,null,null,null,null,null,null,null,"IDIS Activity Number"]
[null,null,null,null,null,null,null,null,null,null,null,"Select Option",null,null,null,null,null,null,null,null,null,null,null,null,null,null,null,null,null,null,{"$f":"IF(L39=\"Cancelled\",\"If Cancelled, Why?\",IF(L39=\"revised\",\"If Revised, Why?\",\"\"))","v":""}]
[null,null,null,null,null,null,null,null,null,null,null,null,null,null,null,null,null,null,null,null,null,""]
[null,null,null,null,null,null,null,null,null,null,null,"Select Option",null,null,null,null,null,null,null,null,null,null,"Project Completion Date"]
[null,null,null,null,null,null,null,null,null,null,null,"Date"]
[]
[]
[null,null,null,null,null,null,null,null,null,null,null,"Part A ",null,null,null,null,null,null,"JURISDICTION & PREPARER INFORMATION",null,null,null,null,null,null,null,null,null,null,null,null,null,null,null,null,null,null,null,null,null,null,null,null,null,null,null,null,null,null,null,null,null,null,null,"REQUIRED"]
[]
[]
[]
[null,null,null,null,null,null,null,null,null,null,null,null,null,"Jurisdiction Contact Information",null,null,null,null,null,null,null,null,null,null,null,null,null,null,null,null,null,null,null,null,null,null,null,null,null,null,null,null,null,null,null,null,null,"Preparer"]
[]
[null,null,null,null,null,null,null,null,null,null,null,null,null,"1a. Name (Contact Person)",null,null,null,null,null,null,null,null,null,null,null,null,null,null,null,null,null,null,null,null,null,null,null,null,null,null,null,null,null,null,null,null,null,"2a. Preparer's Name"]
[]
[]
[null,null,null,null,null,null,null,null,null,null,null,null,null,"1b. E-Mail",null,null,null,null,null,null,null,null,null,null,null,null,null,null,null,null,null,null,null,null,null,null,null,null,null,null,null,null,null,null,null,null,null,"2b. Organization (if Subrecipient or Admin. Contractor)."]
[]
[]
[null,null,null,null,null,null,null,null,null,null,null,null,null,"1c. Phone/Direct Line",null,null,null,null,null,null,null,null,null,null,null,null,null,null,null,null,null,null,null,null,null,null,null,null,null,null,null,null,null,null,null,null,null,"2c. E-Mail",null,null,null,null,null,null,null,null,null,null,null,null,null,null,null,null,null,"2d. Phone/Direct Line"]
[]
[]
[]
[null,null,null,null,null,null,null,null,null,null,null,null,null,"Subrecipient Information (Only)"]
[]
[null,null,null,null,null,null,null,null,null,null,null,null,null,"3a. Organization name",null,null,null,null,null,null,null,null,null,null,null,null,null,null,null,null,null,null,null,null,null,null,null,null,null,null,null,null,null,null,null,null,null,"3b. Complete address"]
[]
[]
[]
[null,null,null,null,null,null,null,null,null,null,null,null,null,"3c. Organization is categorized as:",null,null,null,null,null,null,null,null,null,null,null,null,null,null,null,null,null,null,null,null,null,null,"3d. DUNS number",null,null,null,null,null,null,null,null,null,null,"3e. E-Mail",null,null,null,null,null,null,null,null,null,null,null,null,null,null,null,null,null,"3f. Phone/Direct Line"]
[null,null,null,null,null,null,null,null,null,null,null,null,null,"Select Option"]
[null,null,null,null,null,null,null,null,null,null,null,null,null,null,null,null,null,null,null,null,null,null,null,null,null,null,null,null,null,null,null,null,null,null,null,null,null,null,null,null,null,null,null,null,null,null,null,null,null,null,null,null,null,null,null,null,null,null,null,null,null,null,null,null,null,null,null,null,null,null,null,null,null,null,null,null,null,null,null,null,null,null,null,null,null,null,null,null,null,null,"URG - Urgent Need (requires department approval)"]
[null,null,null,null,null,null,null,null,null,null,null,null,null,"3g. ",null,"Check all that applies to this organization"]
[null,null,null,null,null,null,null,null,null,null,null,null,null,null,null,null,null,null,null,null,null,null,null,null,null,null,null,null,null,null,null,null,null,null,null,null,null,null,null,null,null,null,null,null,null,null,null,null,null,null,null,null,null,null,null,null,null,null,null,null,null,null,null,null,null,null,null,null,null,null,null,null,null,null,null,null,null,null,null,null,null,null,null,null,null,null,null,null,null,null,"LMH - Low/Mod housing benefit"]
[]
[]
[]
[null,null,null,null,null,null,null,null,null,null,null,"Part B ",null,null,null,null,null,null,"PROJECT & ACTIVITY INFORMATION",null,null,null,null,null,null,null,null,null,null,null,null,null,null,null,null,null,null,null,null,null,null,null,null,null,null,null,null,null,null,null,null,null,null,null,"REQUIRED"]
[null,null,null,null,null,null,null,null,null,null,null,null,null,null,null,null,null,null,null,null,null,null,null,null,null,null,null,null,null,null,null,null,null,null,null,null,null,null,null,null,null,null,null,null,null,null,null,null,null,null,null,null,null,null,null,null,null,null,null,null,null,null,null,null,null,null,null,null,null,null,null,null,null,null,null,null,null,null,null,null,null,null,null,null,null,null,null,null,null,null,"LMA - Low/Mod area benefit"]
[]
[]
[null,null,null,null,null,null,null,null,null,null,null,null,null,"1a. Name of Public Service",null,null,null,null,null,null,null,null,null,null,null,null,null,null,null,null,null,null,null,null,null,null,null,null,null,null,null,null,null,null,null,null,null,null,null,null,null,null,null,null,null,null,null,null,null,null,null,null,null,null,null,null,null,null,null,null,null,null,null,null,null,null,null,null,null,null,null,null,null,null,null,null,null,null,null,null,"SBA - Slum/Blight area benefit"]
[]
[null,null,null,null,null,null,null,null,null,null,null,null,null,"1b. Public Service Address",null,null,null,null,null,null,null,null,null,null,null,null,null,null,null,null,null,null,null,null,null,null,null,null,"1c. City",null,null,null,null,null,null,null,null,null,null,null,null,null,"1d. Zip Code",null,null,null,null,null,null,null,null,"CDBG Project Amount (Incl AD)",null,null,null,null,null,null,null,null,null,null,null,null,null,null,null,null,null,null,null,null,null,null,null,null,null,null,null,null,"03T - Operating Cost of Homeless/AIDS Patient Programs"]
[null,null,null,null,null,null,null,null,null,null,null,null,null," ",null,null,null,null,null,null,null,null,null,null,null,null,null,null,null,null,null,null,null,null,null,null,null,null,null,null,null,null,null,null,null,null,null,null,null,null,null,null,null,null,null,null,null,null,null,null,null,null,null,null,null,{"$f":"SUM($BN$244,$BN$258)","v":0},null,null,null,null,null,null,null,null,null,null,null,null,null,null,null,null,null,null,null,null,null,null,null,null,"LMC - Low/Mod limited clientele benefit"]
[]
[]
[null,null,null,null,null,null,null,null,null,null,null,null,null,"2. National Objective",null,null,null,null,null,null,null,null,null,null,null,null,null,null,null,null,null,null,null,null,null,null,"3. Activity & Matrix Code",null,null,null,null,null,null,null,null,null,null,null,null,null,null,null,null,null,null,null,null,null,null,null,null,"4. Accomplishment Type",null,null,null,null,null,null,null,null,null,null,null,null,null,null,null,null,null,null,null,null,null,null,null,null,null,null,null,null,"05H - Employment Training"]
[null,null,null,null,null,null,null,null,null,null,null,null,null,"Select Option",null,null,null,null,null,null,null,null,null,null,null,null,null,null,null,null,null,null,null,null,null,null,"Select Option",null,null,null,null,null,null,null,null,null,null,null,null,null,null,null,null,null,null,null,null,null,null,null,null,"Select Option",null,null,null,null,null,null,null,null,null,null,null,null,null,null,null,null,null,null,null,null,null,null,null,null,null,null,null,null,"05R - Homeownership Assistance (not direct)"]
[]
[]
[null,null,null,null,null,null,null,null,null,null,null,null,null,"5. Presumed Benefit",null,null,null,null,null,null,null,null,null,null,null,null,null,null,null,null,null,null,null,null,null,null,{"$f":"IF(N88=Validation!C83,Validation!D83,IF('Public Service SET UP'!N88=Validation!C84,Validation!D84,IF('Public Service SET UP'!N88=Validation!C85,Validation!D85,IF('Public Service SET UP'!N88=Validation!C86,Validation!D86,IF('Public Service SET UP'!N88=Validation!C87,Validation!D87,IF('Public Service SET UP'!N88=Validation!C88,Validation!D88,IF('Public Service SET UP'!N88=Validation!C89,Validation!D89,IF('Public Service SET UP'!N88=Validation!C90,Validation!D90,\"\"))))))))","v":""}]
[null,null,null,null,null,null,null,null,null,null,null,null,null,"Select Option"]
[]
[]
[null,null,null,null,null,null,null,null,null,null,null,null,null,"6. Activity Purpose (check all that apply)",null,null,null,null,null,null,null,null,null,null,null,null,null,null,null,null,null,null,null,null,null,null,null,null,null,null,null,null,null,null,null,null,null,null,null,null,null,null,null,null,null,null,null,null,null,null,null,null,null,null,null,null,null,null,null,null,null,null,null,null,null,null,null,null,null,null,null,null,null,null,null,null,null,null,null,null,"05S - Rental Housing Subsidies"]
[]
[null,null,null,null,null,null,null,null,null,null,null,null,null,null,null,null,null,null,null,null,null,null,null,null,null,null,null,null,null,null,null,null,null,null,null,null,null,null,null,null,null,null,null,null,null,null,null,null,null,null,null,null,null,null,null,null,null,null,null,null,null,null,null,null,null,null,null,null,null,null,null,null,null,null,null,null,null,null,null,null,null,null,null,null,null,null,null,null,null,null,"05T - Security Deposits"]
[]
[]
[]
[null,null,null,null,null,null,null,null,null,null,null,null,null,"7. Description / Scope of work",null,null,null,null,null,null,null,null,null,null,null,null,null,null,null,null,null,null,null,null,null,null,null,null,null,null,null,null,null,null,null,null,null,null,null,null,null,null,null,null,null,null,null,null,null,null,null,null,null,null,null,null,null,null,null,null,null,null,null,null,null,null,null,null,null,null,null,null,null,null,null,null,null,null,null,null,"15 - Code Enforcement"]
[]
[]
[null,null,null,null,null,null,null,null,null,null,null,null,null,null,null,null,null,null,null,null,null,null,null,null,null,null,null,null,null,null,null,null,null,null,null,null,null,null,null,null,null,null,null,null,null,null,null,null,null,null,null,null,null,null,null,null,null,null,null,null,null,null,null,null,null,null,null,null,null,null,null,null,null,null,null,null,null,null,null,null,null,null,null,null,null,null,null,null,null,null,"10 - Housing Units"]
[]
[]
[null,null,null,null,null,null,null,null,null,null,null,null,null,null,null,null,null,null,null,null,null,null,null,null,null,null,null,null,null,null,null,null,null,null,null,null,null,null,null,null,null,null,null,null,null,null,null,null,null,null,null,null,null,null,null,null,null,null,null,null,null,null,null,null,null,null,null,null,null,null,null,null,null,null,null,null,null,null,null,null,null,null,null,null,null,null,null,null,null,null,"01 - People (General)"]
[]
[null,null,null,null,null,null,null,null,null,null,null,null,null,null,null,null,null,null,null,null,null,null,null,null,null,null,null,null,null,null,null,null,null,null,null,null,null,null,null,null,null,null,null,null,null,null,null,null,null,null,null,null,null,null,null,null,null,null,null,null,null,null,null,null,null,null,null,null,null,null,null,null,null,null,null,null,null,null,null,null,null,null,null,null,null,null,null,null,null,null,"08 - Businesses"]
[null,null,null,null,null,null,null,null,null,null,null,null,null,null,null,null,null,null,null,null,null,null,null,null,null,null,null,null,null,null,null,null,null,null,null,null,null,null,null,null,null,null,null,null,null,null,null,null,null,null,null,null,null,null,null,null,null,null,null,null,null,null,null,null,null,null,null,null,null,null,null,null,null,null,null,null,null,null,null,null,null,null,null,null,null,null,null,null,null,null,"09 - Organizations"]
[null,null,null,null,null,null,null,null,null,null,null,null,null,null,null,null,null,null,null,null,null,null,null,null,null,null,null,null,null,null,null,null,null,null,null,null,null,null,null,null,null,null,null,null,null,null,null,null,null,null,null,null,null,null,null,null,null,null,null,null,null,null,null,null,null,null,null,null,null,null,null,null,null,null,null,null,null,null,null,null,null,"Page 2"]
[]
[null,null,null,null,null,null,null,null,null,null,null," Part C ",null,null,null,null,null,null,"SPECIAL CHARACTERISTICS",null,null,null,null,null,null,null,null,null,null,null,null,null,null,null,null,null,null,null,null,null,null,null,null,null,null,null,null,null,null,null,null,null,null,"REQUIRED"]
[]
[]
[]
[null,null,null,null,null,null,null,null,null,null,null,null,null,"1. Special Areas Where Activity is Located (Check all that apply)"]
[]
[]
[]
[]
[]
[null,null,null,null,null,null,null,null,null,null,null,null,null,null,null,null,null,null,null,null,null,null,null,null,null,null,null,null,null,null,null,null,null,null,null,null,null,null,null,null,null,null,null,null,null,null,null,null,null,null,null,null,null,null,null,null,null,null,null,null,null,null,null,null,null,null,null,null,null,null,null,null,null,null,null,null,null,null,null,null,null,null,null,null,null,null,"LMC - Low/Mod limited clientele benefit"]
[]
[]
[null,null,null,null,null,null,null,null,null,null,null,null,null,null,null,null,null,null,null,null,null,null,null,null,null,null,null,null,null,null,null,null,null,null,null,null,null,null,null,null,null,null,null,null,null,null,null,null,null,null,null,null,null,null,null,null,null,null,null,null,null,null,null,null,null,null,null,null,null,null,null,null,null,null,null,null,null,null,null,null,null,null,null,null,null,null,"SBA - Slum/Blight area benefit"]
[]
[]
[null,null,null,null,null,null,null,null,null,null,null,null,null,"2. Activity Information (check all that apply)"]
[]
[]
[]
[]
[]
[]
[]
[]
[]
[]
[]
[]
[]
[]
[]
[]
[]
[]
[]
[]
[]
[]
[]
[]
[]
[null,null,null,null,null,null,null,null,null,null,null," Part E ",null,null,null,null,null,null,"AREA BENEFIT DATA",null,null,null,null,null,null,null,null,null,null,null,null,null,null,null,null,null,null,null,null,null,null,null,null,null,null,null,null,null,null,null,null,null,null,{"$f":"IF(N84=\"SELECT OPTION\",\"NOT REQUIRED\",IF($N$84=$CM$67,\"NOT REQUIRED\",IF($N$84=$CM$80,\"NOT REQUIRED\",IF($N$84=$CM$77,\"NOT REQUIRED\",IF($N$84=$CM$69,\"NOT REQUIRED\",\"REQUIRED\")))))","v":"NOT REQUIRED"}]
[]
[]
[]
[null,null,null,null,null,null,null,null,null,null,null,null,null,"Benefit data determined by",null,null,null,null,null,null,null,null,null,null,null,null,null,null,null,null,null,null,null,null,null,null,null,null,null,null,null,null,null,null,null,null,null,null,"Date",null,null,null,null,null,null,null,null,null,"County Code",null,null,null,null,null,null,"Select Option"]
[]
[null,null,null,null,null,null,null,null,null,null,null,null,null,null,null,null,null,null,null,null,null,null,null,null,null,null,null,null,null,"Block Groups"]
[]
[]
[null,null,null,null,null,null,null,null,null,null,null,null,null,"Census Tract"]
[]
[]
[null,null,null,null,null,null,null,null,null,null,null,null,null,"Census Tract"]
[]
[]
[null,null,null,null,null,null,null,null,null,null,null,null,null,"Census Tract"]
[]
[]
[null,null,null,null,null,null,null,null,null,null,null,null,null,"Census Tract"]
[]
[]
[null,null,null,null,null,null,null,null,null,null,null,null,null,"Census Tract"]
[]
[]
[null,null,null,null,null,null,null,null,null,null,null,null,null,"Census Tract"]
[]
[]
[null,null,null,null,null,null,null,null,null,null,null,null,null,"Census Tract"]
[]
[]
[null,null,null,null,null,null,null,null,null,null,null,null,null,"Census Tract"]
[]
[]
[null,null,null,null,null,null,null,null,null,null,null,null,null,"Census Tract"]
[]
[]
[null,null,null,null,null,null,null,null,null,null,null,null,null,"Census Tract"]
[]
[]
[null,null,null,null,null,null,null,null,null,null,null,null,null,"Census Tract"]
[]
[]
[null,null,null,null,null,null,null,null,null,null,null,null,null,"Census Tract"]
[]
[]
[null,null,null,null,null,null,null,null,null,null,null,null,null,"Census Tract"]
[]
[]
[null,null,null,null,null,null,null,null,null,null,null,null,null,"Census Tract"]
[]
[]
[null,null,null,null,null,null,null,null,null,null,null,null,null,"Total # Low/Mod",null,null,null,null,null,null,null,null,null,null,null,null,null,null,null,null,null,null,null,null,null,null,null,null,null,"Total Low/Mod Universe Population"]
[]
[]
[]
[]
[null,null,null,null,null,null,null,null,null,null,null," Part F",null,null,null,null,null,null,"HOMEOWNERSHIP ASSISTANCE (not direct)",null,null,null,null,null,null,null,null,null,null,null,null,null,null,null,null,null,null,null,null,null,null,null,null,null,null,null,null,null,null,null,null,null,null,{"$f":"IF(AND($N$84=$CM$67,$AK$84=$CM$84),\"REQUIRED\",IF(AND($N$84=$CM$77,$AK$84=$CM$84),\"REQUIRED\",IF(AND($N$84=$CM$69,$AK$84=$CM$84),\"REQUIRED\",IF(AND($N$84=$CM$69,$AK$84=$CM$91),\"REQUIRED\",IF(AND($N$84=$CM$69,$AK$84=$CM$93),\"REQUIRED\",\"NOT REQUIRED\")))))","v":"NOT REQUIRED"}]
[]
[]
[]
[null,null,null,null,null,null,null,null,null,null,null,null,null,"Multi-Unit Housing:",null,null,null,null,null,null,null,null,null,null,null,null,null,null,null,null,null,null,null,null,null,null,null,null,null,null,null,null,null,"Includes Rental Housing:"]
[]
[]
[]
[null,null,null,null,null,null,null,null,null,null,null,null,null,"Multi-Unit Housing",null,null,null,null,null,null,null,null,null,null,null,null,null,null,null,"Total",null,null,null,null,null,null,null,"Occupied",null,null,null,null,null,null,null,null,null,"Occupied Low/Mod"]
[]
[]
[null,null,null,null,null,null,null,null,null,null,null,null,null,"Units at Start"]
[]
[]
[null,null,null,null,null,null,null,null,null,null,null,null,null,"Units Expected at Completion"]
[]
[]
[]
[]
[]
[]
[null,null,null,null,null,null,null,null,null,null,null,null,null,null,null,null,null,null,null,null,null,null,null,null,null,null,null,null,null,null,null,null,null,null,null,null,null,null,null,null,null,null,null,null,null,null,null,null,null,null,null,null,null,null,null,null,null,null,null,null,null,null,null,null,null,null,null,null,null,null,null,null,null,null,null,null,null,null,null,null,null,"Page 3"]
[null,null,null,null,null,null,null,null,null,null,null," Part G",null,null,null,null,null,null,"PROJECT FUNDING SOURCE DETAIL",null,null,null,null,null,null,null,null,null,null,null,null,null,null,null,null,null,null,null,null,null,null,null,null,null,null,null,null,null,null,null,null,null,null,"REQUIRED"]
[]
[]
[]
[null,null,null,null,null,null,null,null,null,null,null,null,null,"CDBG Grant",null,null,null,null,null,null,null,null,null,null,null,null,null,null,null,null,null,null,null,null,null,null,null,null,null,null,null,null,null,null,null,null,null,null,null,null,null,{"$f":"IF(AK84>0,AK84,\"\")","v":"Select Option"}]
[]
[]
[]
[null,null,null,null,null,null,null,null,null,null,null,null,null,null,"Funding Type (CDBG Funds)",null,null,null,null,null,null,null,null,null,null,null,null,null,null,null,null,null,null,null,null,null,null,null,null,null,null,null,null,null,null,null,null,null,null,null,null,null,null,null,null,null,null,null,null,null,null,null,null,null,null,"Amount (CBDG Funds)"]
[]
[]
[]
[]
[null,null,null,null,null,null,null,null,null,null,null,null,null,null,"CDBG - Grants"]
[]
[null,null,null,null,null,null,null,null,null,null,null,null,null,null,null,null,null,null,null,null,null,null,null,null,null,null,null,null,null,null,null,null,null,null,null,null,null,null,null,null,null,null,null,null,null,null,null,null,null,null,null,null,null,"TOTAL",null,null,null,null,null,null,null,null,null,null,null,{"$f":"SUMIF($BN$242:$BY$242,\">0\")","v":0}]
[]
[]
[null,null,null,null,null,null,null,null,null,null,null,null,null,"CDBG Program Income"]
[]
[]
[]
[null,null,null,null,null,null,null,null,null,null,null,null,null,null,"Program Income (PI) Type",null,null,null,null,null,null,null,null,null,null,null,null,null,null,null,null,null,null,null,null,null,null,null,null,null,null,null,null,null,null,null,null,null,null,null,null,null,null,null,null,null,null,null,null,null,null,null,null,null,null,"Amount"]
[]
[]
[]
[]
[null,null,null,null,null,null,null,null,null,null,null,null,null,null,"CDBG - PI Funds"]
[]
[null,null,null,null,null,null,null,null,null,null,null,null,null,null,null,null,null,null,null,null,null,null,null,null,null,null,null,null,null,null,null,null,null,null,null,null,null,null,null,null,null,null,null,null,null,null,null,null,null,null,null,null,null,"TOTAL",null,null,null,null,null,null,null,null,null,null,null,{"$f":"SUMIF($BN$255:$BY$257,\">0\")","v":0}]
[]
[]
[]
[null,null,null,null,null,null,null,null,null,null,null,null,null,"Leverage and Other Funding Sources"]
[]
[]
[]
[null,null,null,null,null,null,null,null,null,null,null,null,null,null,"Funding Source ",null,null,null,null,null,null,null,null,null,null,null,null,null,null,null,null,null,null,null,null,null,null,"Name of Source",null,null,null,null,null,null,null,null,null,null,null,null,null,null,null,null,null,null,null,null,null,null,null,null,null,null,null,null,null,"Amount"]
[]
[null,null,null,null,null,null,null,null,null,null,null,null,null,null,"Select Option"]
[]
[]
[]
[]
[]
[]
[]
[]
[]
[]
[]
[]
[]
[null,null,null,null,null,null,null,null,null,null,null,null,null,null,null,null,null,null,null,null,null,null,null,null,null,null,null,null,null,null,null,null,null,null,null,null,null,null,null,null,null,null,null,null,null,null,null,null,null,null,null,null,null,null,null,"TOTAL",null,null,null,null,null,null,null,null,null,null,null,{"$f":"SUMIF($BP$268:$BY$280,\">0\")","v":0}]
[]
[]
[null,null,null,null,null,null,null,null,null,null,null,null,null,null,null,null,null,null,null,null,null,null,null,null,null,null,null,null,null,null,null,null,null,null,null,null,null,null,null,null,null,null,null,null,null,null,null,null,null,null,null,null,"TOTAL PROJECT COST",null,null,null,null,null,null,null,null,null,null,null,null,null,null,{"$f":"SUM($BN$244,$BN$258,$BP$282)","v":0}]
[]
[]
[]
[null,null,null,null,null,null,null,null,null,null,null,null,"Comments: Explain any issues with this activity for clarification of information provided in this form."]
[]
[]
[]
[]
[]
[]
[]
[]
[]
[]
[]
[]
[]
[]
[]
[]
[]
[]
[null,null,null,null,null,null,null,null,null,null,null,"END OF DOCUMENT"]

{"sheet":"Public Service COMPLETION","index":1,"n_rows":174,"n_cols":89,"rows_kept":174,"cut":false,"hidden":false,"merged":[[162,16,162,54],[135,44,135,46],[135,48,135,50],[135,52,135,54],[132,56,132,58],[106,82,156,84],[157,82,172,84],[23,30,26,43],[27,30,28,43],[74,22,76,53],[57,55,59,60],[83,17,85,53],[83,55,85,60],[33,22,35,53],[130,56,130,58],[23,15,28,22],[133,56,133,58],[134,56,134,58],[49,22,51,53],[49,55,51,60],[53,22,55,53],[53,55,55,60],[158,16,158,54],[158,71,158,74],[173,15,174,80],[168,16,168,54],[169,16,169,54],[170,16,170,54],[171,16,171,54],[132,16,132,34],[125,16,125,34],[135,36,135,38],[133,16,133,34],[130,16,130,34],[134,16,134,34],[135,16,135,34],[160,16,160,54],[161,16,161,54],[163,76,163,80],[162,56,162,59],[128,56,128,58],[125,52,125,54],[126,52,126,54],[131,56,131,58],[162,66,162,69],[158,76,158,80],[160,76,160,80],[161,76,161,80],[1,86,3,101],[5,15,6,63],[8,17,8,28],[112,21,112,28],[113,21,113,28],[114,21,114,28],[112,29,112,80],[113,29,113,80],[114,29,114,80],[109,15,109,80],[23,55,27,60],[8,29,8,63],[10,17,10,28],[10,29,10,63],[112,15,112,20],[110,15,110,80],[13,15,13,24],[13,64,13,80],[57,17,59,53],[1,15,3,26],[1,27,3,56],[29,22,31,53],[4,65,5,80],[1,82,105,84],[1,65,3,80],[134,48,134,50],[127,52,127,54],[128,52,128,54],[129,52,129,54],[130,52,130,54],[131,52,131,54],[132,52,132,54],[133,52,133,54],[134,52,134,54],[124,52,124,58],[1,59,3,64],[116,29,116,80],[29,55,31,60],[33,55,35,60],[41,22,43,53],[126,16,126,34],[129,56,129,58],[125,56,125,58],[126,56,126,58],[127,56,127,58],[27,44,28,49],[45,22,47,53],[45,55,47,60],[15,15,15,80],[16,15,16,80],[160,71,160,74],[161,71,161,74],[162,71,162,74],[161,56,161,59],[13,25,13,63],[118,15,118,80],[120,15,122,80],[116,15,116,20],[113,15,113,20],[114,15,114,20],[116,21,116,28],[131,16,131,34],[127,16,127,34],[61,22,63,53],[61,55,63,60],[23,23,26,28],[23,44,26,49],[37,55,39,60],[37,22,39,53],[41,55,43,60],[97,15,104,60],[70,67,72,75],[18,15,18,20],[18,21,18,28],[18,29,18,80],[19,15,19,20],[19,21,19,28],[19,29,19,80],[90,67,92,75],[87,55,89,60],[91,55,93,60],[87,19,89,53],[91,18,93,53],[20,15,20,20],[20,21,20,28],[20,29,20,80],[21,15,21,20],[21,21,21,28],[21,29,21,80],[70,17,72,53],[70,55,72,60],[137,56,137,62],[138,57,138,61],[139,57,139,61],[138,16,138,34],[139,16,139,34],[94,15,96,60],[79,22,81,53],[79,55,81,60],[171,76,171,80],[135,56,135,58],[164,61,164,64],[164,66,164,69],[166,56,166,59],[166,61,166,64],[170,56,170,59],[170,61,170,64],[170,66,170,69],[170,76,170,80],[168,56,168,59],[168,61,168,64],[168,66,168,69],[168,76,168,80],[169,56,169,59],[169,61,169,64],[107,15,107,24],[107,25,107,63],[129,16,129,34],[128,16,128,34],[74,55,76,60],[33,67,35,75],[41,67,43,75],[47,67,49,75],[57,67,59,75],[66,22,68,53],[107,64,107,80],[66,55,68,60],[129,60,129,62],[129,64,129,66],[169,76,169,80],[160,56,160,59],[158,56,158,59],[158,61,158,64],[160,61,160,64],[166,71,166,74],[167,71,167,74],[168,71,168,74],[169,71,169,74],[162,76,162,80],[161,61,161,64],[162,61,162,64],[158,66,158,69],[160,66,160,69],[161,66,161,69],[164,76,164,80],[164,56,164,59],[163,56,163,59],[163,61,163,64],[167,76,167,80],[165,76,165,80],[166,66,166,69],[166,76,166,80],[167,56,167,59],[170,71,170,74],[171,71,171,74],[163,16,163,54],[165,56,165,59],[165,61,165,64],[165,66,165,69],[171,56,171,59],[171,61,171,64],[171,66,171,69],[163,66,163,69],[169,66,169,69],[167,16,167,54],[166,16,166,54],[164,16,164,54],[165,16,165,54],[163,71,163,74],[164,71,164,74],[165,71,165,74],[167,61,167,64],[167,66,167,69],[140,16,140,34],[141,16,141,34],[137,36,137,39],[138,36,138,39],[139,36,139,39],[140,36,140,39],[141,36,141,39],[137,46,137,49],[138,46,138,49],[139,46,139,49],[140,46,140,49],[141,46,141,49],[137,41,137,44],[137,16,137,34],[138,41,138,44],[137,51,137,54],[133,44,133,46],[133,48,133,50],[134,44,134,46],[124,36,124,42],[125,40,125,42],[126,40,126,42],[127,40,127,42],[128,40,128,42],[129,40,129,42],[130,40,130,42],[131,40,131,42],[132,40,132,42],[130,36,130,38],[131,36,131,38],[132,36,132,38],[133,36,133,38],[134,36,134,38],[125,36,125,38],[126,36,126,38],[127,36,127,38],[128,36,128,38],[129,36,129,38],[134,60,134,62],[134,64,134,66],[135,60,135,62],[135,64,135,66],[133,40,133,42],[134,40,134,42],[135,40,135,42],[124,44,124,50],[125,44,125,46],[125,48,125,50],[126,44,126,46],[126,48,126,50],[127,44,127,46],[127,48,127,50],[128,44,128,46],[128,48,128,50],[129,44,129,46],[129,48,129,50],[130,44,130,46],[130,48,130,50],[131,44,131,46],[131,48,131,50],[132,44,132,46],[132,48,132,50],[130,60,130,62],[130,64,130,66],[131,60,131,62],[131,64,131,66],[132,60,132,62],[132,64,132,66],[133,60,133,62],[133,64,133,66],[124,60,124,66],[125,60,125,62],[125,64,125,66],[126,60,126,62],[126,64,126,66],[127,60,127,62],[127,64,127,66],[128,60,128,62],[128,64,128,66],[135,69,135,71],[125,73,125,76],[126,73,126,76],[124,69,124,76],[127,73,127,76],[128,73,128,76],[129,73,129,76],[130,73,130,76],[131,73,131,76],[132,73,132,76],[133,73,133,76],[134,73,134,76],[135,73,135,76],[129,69,129,71],[130,69,130,71],[131,69,131,71],[132,69,132,71],[133,69,133,71],[125,69,125,71],[126,69,126,71],[127,69,127,71],[128,69,128,71],[134,69,134,71],[139,51,139,54],[150,16,150,34],[139,41,139,44],[140,41,140,44],[141,41,141,44],[143,16,143,34],[140,57,140,61],[141,57,141,61],[143,36,143,39],[143,41,143,44],[143,46,143,49],[143,51,143,54],[143,57,143,61],[144,36,144,39],[144,41,144,44],[144,46,144,49],[144,51,144,54],[144,57,144,61],[148,57,148,61],[145,36,145,39],[145,41,145,44],[145,46,145,49],[145,51,145,54],[145,57,145,61],[150,36,150,39],[150,41,150,44],[150,46,150,49],[150,51,150,54],[150,57,150,61],[147,36,147,39],[147,41,147,44],[147,46,147,49],[147,51,147,54],[147,57,147,61],[148,36,148,39],[148,41,148,44],[148,46,148,49],[148,51,148,54],[149,57,149,61],[146,57,146,61],[115,15,115,20],[115,21,115,28],[115,29,115,80],[149,36,149,39],[149,41,149,44],[149,46,149,49],[149,51,149,54],[17,15,17,20],[17,21,17,28],[17,29,17,80],[149,16,149,34],[138,51,138,54],[140,51,140,54],[141,51,141,54],[144,16,144,34],[145,16,145,34],[146,16,146,34],[147,16,147,34],[148,16,148,34],[146,36,146,39],[146,41,146,44],[146,46,146,49],[146,51,146,54]]}
[]
[null,null,null,null,null,null,null,null,null,null,null,null,null,null,null,"Jurisdiction Name:",null,null,null,null,null,null,null,null,null,null,null,{"$f":"IF('Public Service SET UP'!X2>0,'Public Service SET UP'!X2,\"\")","v":""},null,null,null,null,null,null,null,null,null,null,null,null,null,null,null,null,null,null,null,null,null,null,null,null,null,null,null,null,null,null,null,"Contract #",null,null,null,null,null,{"$f":"IF('Public Service SET UP'!BJ2>0,'Public Service SET UP'!BJ2,\"\")","v":""},null,null,null,null,null,null,null,null,null,null,null,null,null,null,null,null,"Page 1"]
[]
[]
[null,null,null,null,null,null,null,null,null,null,null,null,null,null,null,null,null,null,null,null,null,null,null,null,null,null,null,null,null,null,null,null,null,null,null,null,null,null,null,null,null,null,null,null,null,null,null,null,null,null,null,null,null,null,null,null,null,null,null,null,null,null,null,null,null,"Status"]
[null,null,null,null,null,null,null,null,null,null,null,null,null,null,null,"STATE OF CALIFORNIA - CDBG PROGRAM\nProject Status and/or Completion Report"]
[]
[]
[null,null,null,null,null,null,null,null,null,null,null,null,null,null,null,null,null,"National Objective",null,null,null,null,null,null,null,null,null,null,null,{"$f":"'Public Service SET UP'!N84","v":"Select Option"}]
[]
[null,null,null,null,null,null,null,null,null,null,null,null,null,null,null,null,null,"Activity Matrix Code",null,null,null,null,null,null,null,null,null,null,null,{"$f":"'Public Service SET UP'!AK84","v":"Select Option"}]
[]
[]
[null,null,null,null,null,null,null,null,null,null,null,null,null,null,null,"Part A",null,null,null,null,null,null,null,null,null,"DIRECT BENEFIT DATA BY PERSONS (LMA & URG) ONLY",null,null,null,null,null,null,null,null,null,null,null,null,null,null,null,null,null,null,null,null,null,null,null,null,null,null,null,null,null,null,null,null,null,null,null,null,null,null,{"$f":"IF(AND('Public Service SET UP'!N84=\"SELECT OPTION\",'Public Service SET UP'!AK84=\"SELECT OPTION\"),\"NOT REQUIRED\",IF(AND('Public Service SET UP'!N84='Public Service SET UP'!CM77,'Public Service SET UP'!AK84='Public Service SET UP'!CM97,'Public Service SET UP'!BJ84='Public Service SET UP'!CM100),\"REQUIRED\",IF(AND('Public Service SET UP'!N84='Public Service SET UP'!CM74,'Public Service SET UP'!AK84='Public Service SET UP'!CM97,'Public Service SET UP'!BJ84='Public Service SET UP'!CM100),\"REQUIRED\",IF('Public Service SET UP'!N84='Public Service SET UP'!CM80,\"NOT REQUIRED\",IF('Public Service SET UP'!N84='Public Service SET UP'!CM69,\"NOT REQUIRED\",IF(AND('Public Service SET UP'!N84='Public Service SET UP'!CM74,'Public Service SET UP'!AK84='Public Service SET UP'!CM97),\"REQUIRED\",IF(AND('Public Service SET UP'!N84='Public Service SET UP'!CM77,'Public Service SET UP'!AK84='Public Service SET UP'!CM97),\"REQUIRED\",\"REQUIRED\")))))))","v":"NOT REQUIRED"}]
[]
[null,null,null,null,null,null,null,null,null,null,null,null,null,null,null,"If the National Objective beneficiaries are either LMA or URG, accomplishment data must be reported by persons served in a fiscal year.  There are 4 fiscal years available to allow for service years that do not align with fiscal years."]
[null,null,null,null,null,null,null,null,null,null,null,null,null,null,null,"Information must match what was reported in each fiscal year Annual Report the public service was operated, for a maximum of 3 service years."]
[null,null,null,null,null,null,null,null,null,null,null,null,null,null,null,"Program Year",null,null,null,null,null,"# of People  or Households",null,null,null,null,null,null,null,"Accomplishment Narrative"]
[]
[]
[]
[]
[]
[null,null,null,null,null,null,null,null,null,null,null,null,null,null,null,"Total Persons Assisted:",null,null,null,null,null,null,null,{"$f":"SUM(V19:AC22)","v":0},null,null,null,null,null,null,"How many veterans?",null,null,null,null,null,null,null,null,null,null,null,null,null,null,null,null,null,null,null,null,null,null,null,null,"Number of Persons"]
[]
[]
[]
[null,null,null,null,null,null,null,null,null,null,null,null,null,null,null,null,null,null,null,null,null,null,null,null,null,null,null,null,null,null,"How many disabled?"]
[]
[null,null,null,null,null,null,null,null,null,null,null,null,null,null,null,null,null,null,null,null,null,null,"With new or continuing Access to a Service or Benefit"]
[]
[]
[]
[null,null,null,null,null,null,null,null,null,null,null,null,null,null,null,null,null,null,null,null,null,null,"With Improved Access to a Service or Benefit",null,null,null,null,null,null,null,null,null,null,null,null,null,null,null,null,null,null,null,null,null,null,null,null,null,null,null,null,null,null,null,null,null,null,null,null,null,null,null,null,null,null,null,null,{"$f":"IF(AND('Public Service SET UP'!N84='Public Service SET UP'!CM67,'Public Service SET UP'!AK84='Public Service SET UP'!CM97),\"NOT REQUIRED\",IF(AND('Public Service SET UP'!N84='Public Service SET UP'!CM77,'Public Service SET UP'!AK84='Public Service SET UP'!CM97),\"NOT REQUIRED\",IF(AND('Public Service SET UP'!N84='Public Service SET UP'!CM74,'Public Service SET UP'!AK84='Public Service SET UP'!CM97),\"NOT REQUIRED\",IF('Public Service SET UP'!N84='Public Service SET UP'!CM67,\"REQUIRED\",IF('Public Service SET UP'!N84='Public Service SET UP'!CM74,\"REQUIRED\",IF('Public Service SET UP'!N84='Public Service SET UP'!CM77,\"REQUIRED\",\"NOT REQUIRED\"))))))","v":"NOT REQUIRED"}]
[]
[]
[]
[null,null,null,null,null,null,null,null,null,null,null,null,null,null,null,null,null,null,null,null,null,null,"Received a Service or Benefit that is No Longer Substandard"]
[]
[]
[]
[null,null,null,null,null,null,null,null,null,null,null,null,null,null,null,null,null,null,null,null,null,null,"Jobs Placements",null,null,null,null,null,null,null,null,null,null,null,null,null,null,null,null,null,null,null,null,null,null,null,null,null,null,null,null,null,null,null,null,null,null,null,null,null,null,null,null,null,null,null,null,{"$f":"IF(AND('Public Service SET UP'!N84='Public Service SET UP'!CM67,'Public Service SET UP'!AK84='Public Service SET UP'!CM83),\"REQUIRED\",IF(AND('Public Service SET UP'!N84='Public Service SET UP'!CM77,'Public Service SET UP'!AK84='Public Service SET UP'!CM83),\"REQUIRED\",IF('Public Service SET UP'!N84='Public Service SET UP'!CM67,\"NOT REQUIRED\",IF('Public Service SET UP'!N84='Public Service SET UP'!CM74,\"NOT REQUIRED\",IF('Public Service SET UP'!N84='Public Service SET UP'!CM80,\"NOT REQUIRED\",\"NOT REQUIRED\")))))","v":"NOT REQUIRED"}]
[]
[]
[]
[null,null,null,null,null,null,null,null,null,null,null,null,null,null,null,null,null,null,null,null,null,null,"Homeless Persons Given Overnight Shelter"]
[]
[null,null,null,null,null,null,null,null,null,null,null,null,null,null,null,null,null,null,null,null,null,null,null,null,null,null,null,null,null,null,null,null,null,null,null,null,null,null,null,null,null,null,null,null,null,null,null,null,null,null,null,null,null,null,null,null,null,null,null,null,null,null,null,null,null,null,null,{"$f":"IF(AND('Public Service SET UP'!N84='Public Service SET UP'!CM67,'Public Service SET UP'!AK84='Public Service SET UP'!CM79),\"REQUIRED\",\"NOT REQUIRED\")","v":"NOT REQUIRED"}]
[]
[null,null,null,null,null,null,null,null,null,null,null,null,null,null,null,null,null,null,null,null,null,null,"Beds Created in Overnight Shelter or Other Emergency Housing "]
[]
[]
[]
[null,null,null,null,null,null,null,null,null,null,null,null,null,null,null,null,null,null,null,null,null,null,"First-Time Homebuyers"]
[]
[]
[]
[null,null,null,null,null,null,null,null,null,null,null,null,null,null,null,null,null,"Of the Number of First-Time Homebuyers, Number Receiving Housing Counseling",null,null,null,null,null,null,null,null,null,null,null,null,null,null,null,null,null,null,null,null,null,null,null,null,null,null,null,null,null,null,null,null,null,null,null,null,null,null,null,null,null,null,null,null,null,null,null,null,null,{"$f":"IF(AND('Public Service SET UP'!N84='Public Service SET UP'!CM67,'Public Service SET UP'!AK84='Public Service SET UP'!CM84),\"REQUIRED\",IF(AND('Public Service SET UP'!N84='Public Service SET UP'!CM77,'Public Service SET UP'!AK84='Public Service SET UP'!CM84),\"REQUIRED\",\"NOT REQUIRED\"))","v":"NOT REQUIRED"}]
[]
[]
[]
[null,null,null,null,null,null,null,null,null,null,null,null,null,null,null,null,null,null,null,null,null,null,"Down payment Assistance/Closing Costs"]
[]
[]
[]
[]
[null,null,null,null,null,null,null,null,null,null,null,null,null,null,null,null,null,null,null,null,null,null,"Receiving short-term rental assistance (not more than three months) "]
[]
[]
[]
[null,null,null,null,null,null,null,null,null,null,null,null,null,null,null,null,null,"That were previously homeless ",null,null,null,null,null,null,null,null,null,null,null,null,null,null,null,null,null,null,null,null,null,null,null,null,null,null,null,null,null,null,null,null,null,null,null,null,null,null,null,null,null,null,null,null,null,null,null,null,null,{"$f":"IF(AND('Public Service SET UP'!N84='Public Service SET UP'!CM67,'Public Service SET UP'!AK84='Public Service SET UP'!CM91),\"REQUIRED\",IF(AND('Public Service SET UP'!N84='Public Service SET UP'!CM77,'Public Service SET UP'!AK84='Public Service SET UP'!CM91),\"REQUIRED\",\"NOT REQUIRED\"))","v":"NOT REQUIRED"}]
[]
[]
[]
[null,null,null,null,null,null,null,null,null,null,null,null,null,null,null,null,null,null,null,null,null,null,"Number that were chronically homeless "]
[]
[]
[]
[]
[null,null,null,null,null,null,null,null,null,null,null,null,null,null,null,null,null,null,null,null,null,null," Housing units receiving violations"]
[]
[]
[]
[null,null,null,null,null,null,null,null,null,null,null,null,null,null,null,null,null,"Housing units where code violations have been corrected using CDBG funds"]
[]
[]
[]
[null,null,null,null,null,null,null,null,null,null,null,null,null,null,null,null,null,null,null,"Housing units where code violations have been corrected by the owner"]
[]
[]
[null,null,null,null,null,null,null,null,null,null,null,null,null,null,null,null,null,null,null,null,null,null,null,null,null,null,null,null,null,null,null,null,null,null,null,null,null,null,null,null,null,null,null,null,null,null,null,null,null,null,null,null,null,null,null,null,null,null,null,null,null,null,null,null,null,null,null,{"$f":"IF(AND('Public Service SET UP'!N84='Public Service SET UP'!CM74,'Public Service SET UP'!AK84='Public Service SET UP'!CM97,'Public Service SET UP'!BJ84='Public Service SET UP'!CM100),\"REQUIRED\",IF(AND('Public Service SET UP'!N84='Public Service SET UP'!CM77,'Public Service SET UP'!AK84='Public Service SET UP'!CM97,'Public Service SET UP'!BJ84='Public Service SET UP'!CM100),\"REQUIRED\",\"NOT REQUIRED\"))","v":"NOT REQUIRED"}]
[null,null,null,null,null,null,null,null,null,null,null,null,null,null,null,null,null,null,"Housing units where code violations have been corrected using other funds"]
[]
[]
[null,null,null,null,null,null,null,null,null,null,null,null,null,null,null,"Describe specific public and private improvements or services provided in the code enforcement area"]
[]
[]
[]
[]
[]
[]
[]
[]
[]
[]
[]
[null,null,null,null,null,null,null,null,null,null,null,null,null,null,null,null,null,null,null,null,null,null,null,null,null,null,null,null,null,null,null,null,null,null,null,null,null,null,null,null,null,null,null,null,null,null,null,null,null,null,null,null,null,null,null,null,null,null,null,null,null,null,null,null,null,null,null,null,null,null,null,null,null,null,null,null,null,null,null,null,null,null,"Page 2"]
[null,null,null,null,null,null,null,null,null,null,null,null,null,null,null,"Part B",null,null,null,null,null,null,null,null,null,"DIRECT BENEFIT DATA BY PERSONS - LMC & LMH ONLY",null,null,null,null,null,null,null,null,null,null,null,null,null,null,null,null,null,null,null,null,null,null,null,null,null,null,null,null,null,null,null,null,null,null,null,null,null,null,{"$f":"IF('Public Service SET UP'!N84='Public Service SET UP'!CM80,\"REQUIRED\",IF('Public Service SET UP'!N84='Public Service SET UP'!CM69,\"REQUIRED\",\"NOT REQUIRED\"))","v":"NOT REQUIRED"}]
[]
[null,null,null,null,null,null,null,null,null,null,null,null,null,null,null,"If the National Objective beneficiaries are either LMC or LMH, accomplishment data must be reported by persons served in a fiscal year.  There are 4 fiscal years available to allow for service years that do not align with fiscal years."]
[null,null,null,null,null,null,null,null,null,null,null,null,null,null,null,"Information must match what was reported in each fiscal year Annual Report the public service was operated, for a maximum of 3 service years."]
[]
[null,null,null,null,null,null,null,null,null,null,null,null,null,null,null,"Program Year",null,null,null,null,null,"# of People  or Households",null,null,null,null,null,null,null,"Accomplishment Narrative"]
[]
[]
[]
[]
[null,null,null,null,null,null,null,null,null,null,null,null,null,null,null,null,null,null,null,null,null,null,null,null,null,null,null,null,null,null,null,null,null,null,null,null,null,null,null,null,null,null,null,null,null,null,null,null,null,null,null,null,null,null,null,null,null,null,null,null,null,null,null,null,null,null,null,null,null,null,null,null,null,null,null,null,null,null,null,null,null,null,null,null,null,null,null,null,"Extremely Low ( ≤ 30%)"]
[null,null,null,null,null,null,null,null,null,null,null,null,null,null,null,null,null,null,null,null,null,null,null,null,null,null,null,null,null,null,null,null,null,null,null,null,null,null,null,null,null,null,null,null,null,null,null,null,null,null,null,null,null,null,null,null,null,null,null,null,null,null,null,null,null,null,null,null,null,null,null,null,null,null,null,null,null,null,null,null,null,null,null,null,null,null,null,null,"Low (31-50%)"]
[null,null,null,null,null,null,null,null,null,null,null,null,null,null,null,null,null,null,null,null,null,null,null,null,null,null,null,null,null,null,null,null,null,null,null,null,null,null,null,null,null,null,null,null,null,null,null,null,null,null,null,null,null,null,null,null,null,null,null,null,null,null,null,null,null,null,null,null,null,null,null,null,null,null,null,null,null,null,null,null,null,null,null,null,null,null,null,null,"Moderate (51-80%)"]
[null,null,null,null,null,null,null,null,null,null,null,null,null,null,null,"DIRECT BENEFIT DATA BY PERSON",null,null,null,null,null,null,null,null,null,null,null,null,null,null,null,null,null,null,null,null,null,null,null,null,null,null,null,null,null,null,null,null,null,null,null,null,null,null,null,null,null,null,null,null,null,null,null,null,null,null,null,null,null,null,null,null,null,null,null,null,null,null,null,null,null,null,null,null,null,null,null,null,"Non-Low/ Moderate (+80%)"]
[]
[null,null,null,null,null,null,null,null,null,null,null,null,null,null,null,null,null,null,null,null,null,null,null,null,null,null,null,null,null,null,null,null,null,null,null,null,null,null,null,null,null,null,null,null,null,null,null,null,null,null,null,null,null,null,null,null,null,null,null,null,null,null,null,null,null,null,null,null,null,null,null,null,null,null,null,null,null,null,null,null,null,null,null,null,null,null,null,null,"11 - White"]
[null,null,null,null,null,null,null,null,null,null,null,null,null,null,null,null,null,null,null,null,null,null,null,null,null,null,null,null,null,null,null,null,null,null,null,null,null,null,null,null,null,null,null,null,null,null,null,null,null,null,null,null,null,null,null,null,null,null,null,null,null,null,null,null,null,null,null,null,null,null,null,null,null,null,null,null,null,null,null,null,null,null,null,null,null,null,null,null,"12 - Black/African American "]
[null,null,null,null,null,null,null,null,null,null,null,null,null,null,null,null,null,null,null,null,null,null,null,null,null,null,null,null,null,null,null,null,null,null,null,null,"FY 1",null,null,null,null,null,null,null,"FY 2",null,null,null,null,null,null,null,"FY 3",null,null,null,null,null,null,null,"FY 4",null,null,null,null,null,null,null,null,"All Years",null,null,null,null,null,null,null,null,null,null,null,null,null,null,null,null,null,null,"13 - Asian"]
[null,null,null,null,null,null,null,null,null,null,null,null,null,null,null,null,"Race / Ethnicity",null,null,null,null,null,null,null,null,null,null,null,null,null,null,null,null,null,null,null,"Total",null,null,null,"Hisp /Latino",null,null,null,"Total",null,null,null,"Hisp /Latino",null,null,null,"Total",null,null,null,"Hisp /Latino",null,null,null,"Total",null,null,null,"Hisp /Latino",null,null,null,null,"Total",null,null,null,"Hisp /Latino",null,null,null,null,null,null,null,null,null,null,null,null,null,null,"14 - American Indian/ Alaskan Native "]
[null,null,null," ",null,null,null,null,null,null,null,null,null,null,null,null,"White (11)",null,null,null,null,null,null,null,null,null,null,null,null,null,null,null,null,null,null,null,null,null,null,null,null,null,null,null,null,null,null,null,null,null,null,null,null,null,null,null,null,null,null,null,null,null,null,null,null,null,null,null,null,{"$f":"AK127+AS127+BA127+BI127","v":0},null,null,null,{"$f":"AO127+AW127+BE127+BM127","v":0},null,null,null,null,null,null,null,null,null,null,null,null,null,null,"15 - Native Hawaiian/ Other Pacific Islander"]
[null,null,null,null,null,null,null,null,null,null,null,null,null,null,null,null,"Black/African American (12)",null,null,null,null,null,null,null,null,null,null,null,null,null,null,null,null,null,null,null,null,null,null,null,null,null,null,null,null,null,null,null,null,null,null,null,null,null,null,null,null,null,null,null,null,null,null,null,null,null,null,null,null,{"$f":"AK128+AS128+BA128+BI128","v":0},null,null,null,{"$f":"AO128+AW128+BE128+BM128","v":0},null,null,null,null,null,null,null,null,null,null,null,null,null,null,"16 - Am. Indian/Alaskan Native & White "]
[null,null,null,null,null,null,null,null,null,null,null,null,null,null,null,null,"Asian (13)",null,null,null,null,null,null,null,null,null,null,null,null,null,null,null,null,null,null,null,null,null,null,null,null,null,null,null,null,null,null,null,null,null,null,null,null,null,null,null,null,null,null,null,null,null,null,null,null,null,null,null,null,0,null,null,null,0,null,null,null,null,null,null,null,null,null,null,null,null,null,null,"17 - Asian & White "]
[null,null,null,null,null,null,null,null,null,null,null,null,null,null,null,null,"American Indian / Alaskan Native (14)",null,null,null,null,null,null,null,null,null,null,null,null,null,null,null,null,null,null,null,null,null,null,null,null,null,null,null,null,null,null,null,null,null,null,null,null,null,null,null,null,null,null,null,null,null,null,null,null,null,null,null,null,0,null,null,null,0,null,null,null,null,null,null,null,null,null,null,null,null,null,null,"18 - Black/African Am. & White"]
[null,null,null,null,null,null,null,null,null,null,null,null,null,null,null,null,"Native Hawaiian / Other Pacific Isl. (15)",null,null,null,null,null,null,null,null,null,null,null,null,null,null,null,null,null,null,null,null,null,null,null,null,null,null,null,null,null,null,null,null,null,null,null,null,null,null,null,null,null,null,null,null,null,null,null,null,null,null,null,null,0,null,null,null,0,null,null,null,null,null,null,null,null,null,null,null,null,null,null,"19 - Am. Indian/Alaskan & Blk/African "]
[null,null,null,null,null,null,null,null,null,null,null,null,null,null,null,null,"Am. Indian / Alaskan Native & White (16)",null,null,null,null,null,null,null,null,null,null,null,null,null,null,null,null,null,null,null,null,null,null,null,null,null,null,null,null,null,null,null,null,null,null,null,null,null,null,null,null,null,null,null,null,null,null,null,null,null,null,null,null,0,null,null,null,0,null,null,null,null,null,null,null,null,null,null,null,null,null,null,"20 - Other Multi-Racial "]
[null,null,null,null,null,null,null,null,null,null,null,null,null,null,null,null,"Asian & White (17)",null,null,null,null,null,null,null,null,null,null,null,null,null,null,null,null,null,null,null,null,null,null,null,null,null,null,null,null,null,null,null,null,null,null,null,null,null,null,null,null,null,null,null,null,null,null,null,null,null,null,null,null,0,null,null,null,0]
[null,null,null,null,null,null,null,null,null,null,null,null,null,null,null,null,"Black/African Am. & White (18)",null,null,null,null,null,null,null,null,null,null,null,null,null,null,null,null,null,null,null,null,null,null,null,null,null,null,null,null,null,null,null,null,null,null,null,null,null,null,null,null,null,null,null,null,null,null,null,null,null,null,null,null,0,null,null,null,0,null,null,null,null,null,null,null,null,null,null,null,null,null,null,"Yes"]
[null,null,null,null,null,null,null,null,null,null,null,null,null,null,null,null,"Am. Indian/Alaskan & Blk/African (19)",null,null,null,null,null,null,null,null,null,null,null,null,null,null,null,null,null,null,null,null,null,null,null,null,null,null,null,null,null,null,null,null,null,null,null,null,null,null,null,null,null,null,null,null,null,null,null,null,null,null,null,null,0,null,null,null,0,null,null,null,null,null,null,null,null,null,null,null,null,null,null,"No"]
[null,null,null,null,null,null,null,null,null,null,null,null,null,null,null,null,"Other Multi-Racial (20)",null,null,null,null,null,null,null,null,null,null,null,null,null,null,null,null,null,null,null,null,null,null,null,null,null,null,null,null,null,null,null,null,null,null,null,null,null,null,null,null,null,null,null,null,null,null,null,null,null,null,null,null,0,null,null,null,0,null,null,null,null,null,null,null,null,null,null,null,null,null,null,"New"]
[null,null,null,null,null,null,null,null,null,null,null,null,null,null,null,null,null,null,null,null,null,null,null,null,null,null,null,null,null,null,null,null,null,null,null,null,null,null,null,null,null,null,null,null,null,null,null,null,null,null,null,null,null,null,null,null,null,null,null,null,null,null,null,null,null,null,null,null,null,null,null,null,null,null,null,null,null,null,null,null,null,null,null,null,null,null,null,null,"Improved"]
[null,null,null,null,null,null,null,null,null,null,null,null,null,null,null,null,"INCOME LEVELS",null,null,null,null,null,null,null,null,null,null,null,null,null,null,null,null,null,null,null,"FY1",null,null,null,null,"FY2",null,null,null,null,"FY 3",null,null,null,null,"FY 4",null,null,null,null,"All Years"]
[null,null,null,null,null,null,null,null,null,null,null,null,null,null,null,null,"Extremely Low (<30%)",null,null,null,null,null,null,null,null,null,null,null,null,null,null,null,null,null,null,null,null,null,null,null,null,null,null,null,null,null,null,null,null,null,null,null,null,null,null,null,null,{"$f":"SUM(AK139:BC139)","v":0}]
[null,null,null,null,null,null,null,null,null,null,null,null,null,null,null,null,"Low (31-50%)",null,null,null,null,null,null,null,null,null,null,null,null,null,null,null,null,null,null,null,null,null,null,null,null,null,null,null,null,null,null,null,null,null,null,null,null,null,null,null,null,{"$f":"SUM(AK140:BC140)","v":0}]
[null,null,null,null,null,null,null,null,null,null,null,null,null,null,null,null,"Moderate (51-80%)",null,null,null,null,null,null,null,null,null,null,null,null,null,null,null,null,null,null,null,null,null,null,null,null,null,null,null,null,null,null,null,null,null,null,null,null,null,null,null,null,{"$f":"SUM(AK141:BC141)","v":0}]
[null,null,null,null,null,null,null,null,null,null,null,null,null,null,null,null,"Non-Low/ Moderate (+80%)",null,null,null,null,null,null,null,null,null,null,null,null,null,null,null,null,null,null,null,null,null,null,null,null,null,null,null,null,null,null,null,null,null,null,null,null,null,null,null,null,0]
[]
[null,null,null,null,null,null,null,null,null,null,null,null,null,null,null,null,"Female head of household",null,null,null,null,null,null,null,null,null,null,null,null,null,null,null,null,null,null,null,null,null,null,null,null,null,null,null,null,null,null,null,null,null,null,null,null,null,null,null,null,{"$f":"SUM(AK144:BC144)","v":0}]
[null,null,null,null,null,null,null,null,null,null,null,null,null,null,null,null,"Veteran",null,null,null,null,null,null,null,null,null,null,null,null,null,null,null,null,null,null,null,null,null,null,null,null,null,null,null,null,null,null,null,null,null,null,null,null,null,null,null,null,{"$f":"SUM(AK145:BC145)","v":0}]
[null,null,null,null,null,null,null,null,null,null,null,null,null,null,null,null,"Single / Non Elderly",null,null,null,null,null,null,null,null,null,null,null,null,null,null,null,null,null,null,null,null,null,null,null,null,null,null,null,null,null,null,null,null,null,null,null,null,null,null,null,null,0]
[null,null,null,null,null,null,null,null,null,null,null,null,null,null,null,null,"Elderly",null,null,null,null,null,null,null,null,null,null,null,null,null,null,null,null,null,null,null,null,null,null,null,null,null,null,null,null,null,null,null,null,null,null,null,null,null,null,null,null,0]
[null,null,null,null,null,null,null,null,null,null,null,null,null,null,null,null,"Related/Single Parent",null,null,null,null,null,null,null,null,null,null,null,null,null,null,null,null,null,null,null,null,null,null,null,null,null,null,null,null,null,null,null,null,null,null,null,null,null,null,null,null,0]
[null,null,null,null,null,null,null,null,null,null,null,null,null,null,null,null,"Related/Two Parent",null,null,null,null,null,null,null,null,null,null,null,null,null,null,null,null,null,null,null,null,null,null,null,null,null,null,null,null,null,null,null,null,null,null,null,null,null,null,null,null,0]
[null,null,null,null,null,null,null,null,null,null,null,null,null,null,null,null,"Other",null,null,null,null,null,null,null,null,null,null,null,null,null,null,null,null,null,null,null,null,null,null,null,null,null,null,null,null,null,null,null,null,null,null,null,null,null,null,null,null,0,null,null,null,null,null,null,null,null,null,null,null,null,null,null,null,null,null,null,null,null,null,null,null,null,null,null,null,null,null,null,"No Longer Substandard"]
[null,null,null,null,null,null,null,null,null,null,null,null,null,null,null,null,"Participans disabled",null,null,null,null,null,null,null,null,null,null,null,null,null,null,null,null,null,null,null,null,null,null,null,null,null,null,null,null,null,null,null,null,null,null,null,null,null,null,null,null,0]
[null,null,null,null,null,null,null,null,null,null,null,null,null,null,null,null,null,null,null,null,null,null,null,null,null,null,null,null,null,null,null,null,null,null,null,null,null,null,null,null,null,null,null,null,null,null,null,null,null,null,null,null,null,null,null,null,null,null,null,null,null,null,null,null,null,null,null,null,null,null,null,null,null,null,null,null,null,null,null,null,null,null,null,null,null,null,null,null,"Single/ Non-Elderly"]
[null,null,null,null,null,null,null,null,null,null,null,null,null,null,null,null,null,null,null,null,null,null,null,null,null,null,null,null,null,null,null,null,null,null,null,null,null,null,null,null,null,null,null,null,null,null,null,null,null,null,null,null,null,null,null,null,null,null,null,null,null,null,null,null,null,null,null,null,null,null,null,null,null,null,null,null,null,null,null,null,null,null,null,null,null,null,null,null,"Elderly"]
[null,null,null,null,null,null,null,null,null,null,null,null,null,null,null,null,null,null,null,null,null,null,null,null,null,null,null,null,null,null,null,null,null,null,null,null,null,null,null,null,null,null,null,null,null,null,null,null,null,null,null,null,null,null,null,null,null,null,null,null,null,null,null,null,null,null,null,null,null,null,null,null,null,null,null,null,null,null,null,null,null,null,null,null,null,null,null,null,"Related/ Single Parent"]
[null,null,null,null,null,null,null,null,null,null,null,null,null,null,null,null,null,null,null,null,null,null,null,null,null,null,null,null,null,null,null,null,null,null,null,null,null,null,null,null,null,null,null,null,null,null,null,null,null,null,null,null,null,null,null,null,null,null,null,null,null,null,null,null,null,null,null,null,null,null,null,null,null,null,null,null,null,null,null,null,null,null,null,null,null,null,null,null,"Related/Two Parent"]
[null,null,null,null,null,null,null,null,null,null,null,null,null,null,null,null,null,null,null,null,null,null,null,null,null,null,null,null,null,null,null,null,null,null,null,null,null,null,null,null,null,null,null,null,null,null,null,null,null,null,null,null,null,null,null,null,null,null,null,null,null,null,null,null,null,null,null,null,null,null,null,null,null,null,null,null,null,null,null,null,null,null,null,null,null,null,null,null,"Other"]
[]
[null,null,null,null,null,null,null,null,null,null,null,null,null,null,null,null,null,null,null,null,null,null,null,null,null,null,null,null,null,null,null,null,null,null,null,null,null,null,null,null,null,null,null,null,null,null,null,null,null,null,null,null,null,null,null,null,null,null,null,null,null,null,null,null,null,null,null,null,null,null,null,null,null,null,null,null,null,null,null,null,null,null,"Page 3"]
[null,null,null,null,null,null,null,null,null,null,null,null,null,null,null,null,"PERSONS ASSISTED",null,null,null,null,null,null,null,null,null,null,null,null,null,null,null,null,null,null,null,null,null,null,null,null,null,null,null,null,null,null,null,null,null,null,null,null,null,null,null,"FY 1",null,null,null,null,"FY 2",null,null,null,null,"FY 3",null,null,null,null,"FY 4",null,null,null,null,"All Years"]
[null,null,null,null,null,null," "]
[null,null,null,null,null,null,null,null,null,null,null,null,null,null,null,null,"With new or continuing access to a service or benefit",null,null,null,null,null,null,null,null,null,null,null,null,null,null,null,null,null,null,null,null,null,null,null,null,null,null,null,null,null,null,null,null,null,null,null,null,null,null,null,null,null,null,null,null,null,null,null,null,null,null,null,null,null,null,null,null,null,null,null,{"$f":"SUM(BE161:BW161)","v":0}]
[null,null,null,null,null,null,null,null,null,null,null,null,null,null,null,null,"With improved access to a service or benefit",null,null,null,null,null,null,null,null,null,null,null,null,null,null,null,null,null,null,null,null,null,null,null,null,null,null,null,null,null,null,null,null,null,null,null,null,null,null,null,null,null,null,null,null,null,null,null,null,null,null,null,null,null,null,null,null,null,null,null,{"$f":"SUM(BE162:BW162)","v":0}]
[null,null,null,null,null,null,null,null,null,null,null,null,null,null,null,null,"Received a service or benefit that is no longer substandard",null,null,null,null,null,null,null,null,null,null,null,null,null,null,null,null,null,null,null,null,null,null,null,null,null,null,null,null,null,null,null,null,null,null,null,null,null,null,null,null,null,null,null,null,null,null,null,null,null,null,null,null,null,null,null,null,null,null,null,0]
[null,null,null,null,null,null,null,null,null,null,null,null,null,null,null,null,"Homeless Persons Given Overnight Shelter ",null,null,null,null,null,null,null,null,null,null,null,null,null,null,null,null,null,null,null,null,null,null,null,null,null,null,null,null,null,null,null,null,null,null,null,null,null,null,null,null,null,null,null,null,null,null,null,null,null,null,null,null,null,null,null,null,null,null,null,0]
[null,null,null,null,null,null,null,null,null,null,null,null,null,null,null,null,"Beds Created in Overnight Shelter or Other Emergency Housing ",null,null,null,null,null,null,null,null,null,null,null,null,null,null,null,null,null,null,null,null,null,null,null,null,null,null,null,null,null,null,null,null,null,null,null,null,null,null,null,null,null,null,null,null,null,null,null,null,null,null,null,null,null,null,null,null,null,null,null,0]
[null,null,null,null,null,null,null,null,null,null,null,null,null,null,null,null,"Jobs Placements",null,null,null,null,null,null,null,null,null,null,null,null,null,null,null,null,null,null,null,null,null,null,null,null,null,null,null,null,null,null,null,null,null,null,null,null,null,null,null,null,null,null,null,null,null,null,null,null,null,null,null,null,null,null,null,null,null,null,null,0]
[null,null,null,null,null,null,null,null,null,null,null,null,null,null,null,null,"First-Time Homebuyers",null,null,null,null,null,null,null,null,null,null,null,null,null,null,null,null,null,null,null,null,null,null,null,null,null,null,null,null,null,null,null,null,null,null,null,null,null,null,null,null,null,null,null,null,null,null,null,null,null,null,null,null,null,null,null,null,null,null,null,0]
[null,null,null,null,null,null,null,null,null,null,null,null,null,null,null,null,"Of the Number of First-Time Homebuyers, Number Receiving Housing Counseling",null,null,null,null,null,null,null,null,null,null,null,null,null,null,null,null,null,null,null,null,null,null,null,null,null,null,null,null,null,null,null,null,null,null,null,null,null,null,null,null,null,null,null,null,null,null,null,null,null,null,null,null,null,null,null,null,null,null,null,0]
[null,null,null,null,null,null,null,null,null,null,null,null,null,null,null,null,"Down payment Assistance/Closing Costs",null,null,null,null,null,null,null,null,null,null,null,null,null,null,null,null,null,null,null,null,null,null,null,null,null,null,null,null,null,null,null,null,null,null,null,null,null,null,null,null,null,null,null,null,null,null,null,null,null,null,null,null,null,null,null,null,null,null,null,0]
[null,null,null,null,null,null,null,null,null,null,null,null,null,null,null,null,"Receiving short-term rental assistance (not more than three months)",null,null,null,null,null,null,null,null,null,null,null,null,null,null,null,null,null,null,null,null,null,null,null,null,null,null,null,null,null,null,null,null,null,null,null,null,null,null,null,null,null,null,null,null,null,null,null,null,null,null,null,null,null,null,null,null,null,null,null,0]
[null,null,null,null,null,null,null,null,null,null,null,null,null,null,null,null,"That were previously homeless ",null,null,null,null,null,null,null,null,null,null,null,null,null,null,null,null,null,null,null,null,null,null,null,null,null,null,null,null,null,null,null,null,null,null,null,null,null,null,null,null,null,null,null,null,null,null,null,null,null,null,null,null,null,null,null,null,null,null,null,0]
[null,null,null,null,null,null,null,null,null,null,null,null,null,null,null,null,"Number that were chronically homeless ",null,null,null,null,null,null,null,null,null,null,null,null,null,null,null,null,null,null,null,null,null,null,null,null,null,null,null,null,null,null,null,null,null,null,null,null,null,null,null,null,null,null,null,null,null,null,null,null,null,null,null,null,null,null,null,null,null,null,null,0]
[]
[null,null,null,null,null,null,null,null,null,null,null,null,null,null,null,"END OF DOCUMENT"]

{"sheet":"Validation","index":2,"n_rows":152,"n_cols":8,"rows_kept":152,"cut":false,"hidden":true,"merged":[[156,1,156,2],[14,7,15,7],[152,1,152,2],[153,1,153,2],[154,1,154,2],[155,1,155,2]]}
["Select Option",null,null,"Yes","Non-Profit Organization",null,"Match Leverage"]
["Original",null,null,"No","Faith-Based Organization",null,"Select Option"]
["Revised",null,null,null,"Institution of Higher Education","L000-Local Other","F000-Federal Other"]
["Cancelled",null,null,null,null,"L110-Staff Time","F100-Federal HUD"]
[null,null,null,null,null,"L120-Local-in-Kind","F200-Federal SBA"]
["FY 14/15",null,null,null,null,"L130-Local Land","F300-Federal EDA"]
["FY 15/16",null,null,"National Objective",null,"L200-Local Fees","F400-Federal USDA"]
["FY 16/17",null,null,"Select Option",null,"L210-Local Fee Waivers","F500-Federal FEMA"]
["FY 17/18",null,null,"LMA - Low/Mod area benefit",null,"L220-Local Audit","F600-Federal Housing Tax Credits"]
["FY 18/19",null,null,"LMC - Low/Mod limited clientele benefit",null,"L300-Local","L000-Local Other"]
["FY 19/20",null,null,"LMH - Low/Mod housing benefit",null,"L310-PTA Cash Match","L001-Local No Match Required"]
["FY 20/21",null,null,"URG - Urgent Need (requires department approval)",null,"L600-Local RDA","L110-Staff Time"]
["FY 21/22",null,null,null,null,"P000 Private Other","L120-Local-in-Kind"]
["FY 22/23",null,null,null,null,"P100-Private Equity","L130-Local Land Contribution"]
["FY 23/24",null,null,"Select Option","14H Rehabilitation Administration","P110-Private Sweat Equity","L200-Local Fee Waiver","What's the difference?"]
["FY 24/25",null,null,"Setup",null,"P120-Private-in-Kind","L210-Local Fee Waivers"]
[null,null,null,"Completion",null,"P200-Private Fees","L220-Local Audit"]
[null,null,null,null,"Grant","P320-Private Financing","L300-Local Funds"]
[null,null,null,null,"Loan","P900-Private Volunteer Time","L310-PTA Cash Match General"]
[null,null,null,null,"Grant and Loan","F000-State Other","L311-PTA Cash Match ED"]
[null,null,null,"Business Type",null,"S200-State Tax Credits","L320-PTA Private Financing"]
[null,null,null,"Select Option","Select Option",null,"L330-Bonds"]
[null,null,null,"None ","11 - White",null,"L400-Goods and Services Incl."]
[null,null,null,"New","12 - Black/African American ",null,"L500-Gas Tax"]
[null,null,null,"Existing","13 - Asian","-CDBG-","L600-Local RDA"]
[null,null,null,null,"14 - American Indian/ Alaskan Native ",null,"L601-Local RDA"]
[null,null,null,null,"15 - Native Hawaiian/ Other Pacific Islander",null,"L602-Waived Interest/ Fin'e Chg"]
[null,null,null,null,"16 - Am. Indian/Alaskan Native & White ",null,"P000 Private Other"]
[null,null,null,null,"17 - Asian & White ",null,"P100-Private Equity","Delete \"Equity\"?"]
[null,null,null,null,"18 - Black/African Am. & White",null,"P110-Private Sweat Equity"]
[null,null,null,null,"19 - Am. Indian/Alaskan & Blk/African ",null,"P120-Private-in-Kind"]
[null,null,null,null,"20 - Other Multi-Racial ",null,"P130-Private-Equity in Land/ Improve"]
[null,null,null,null,null,null,"P200-Private Fees"]
[null,null,null,null,"Income Level","Accomplishment Type","P210-Private Fee Waivers"]
[null,null,null,null,"Select Option","Select Option","P220-Private Discounts"]
[null,null,null,null,"Extremely Low ( ≤ 30%)","01 - People (General)","P300-Private Funds"]
[null,null,null,null,"Low (31-50%)","04 - Households","P310-Private Cash Match"]
[null,null,null,null,"Moderate (51-80%)","08 - Businesses","P320-Private Financing"]
[null,null,null,null,"Non-Low/ Moderate (+80%)","09 - Organizations","P330-Private Loans"]
[null,null,null,null,null,"10 - Housing Units","P340-Private Banks"]
[null,null,null,null,"Select Option",null,"P350-Private EDC"]
[null,null,null,null,"Housing constructed before 1978",null,"P400-Private Good and Services"]
[null,null,null,null,"*Exempt: Housing constructed in 1978/ later",null,"P500-Private Tax Credit Equity"]
[null,null,null,null,"Exempt: No paint disturbed",null,"P600-Private Foundation/ Nonprofit G","G?"]
[null,null,null,null,"Otherwise exempt",null,"P900-Private Volunteer Time"]
[null,null,null,null,null,null,"S000-State Other"]
[null,null,null,null,"Select Option",null,"S100-State HCD"]
[null,null,null,null,"Lead Safe Work Practices (24 CFR 35.930(b)) (Hard cost < or = to $5,000)",null,"S200-State Treasurer Tax Credits-MC"]
[null,null,null,null,"Interim Controls/ Standard Practices (24 CFR 35.930(c)) (Hard cost $5,000-$25,000)",null,"S300-State SWRCB"]
[null,null,null,null,"Abatement (24 CFR 35.930(d)) (Hard cost > $25,000)",null,"S400-State CalHFA (CHFA)"]
[null,null,null,null,"N/A",null,"S500-State CSD"]
[]
[null,null,null,"Select Option"]
[null,null,null,"A 105 (a) (15) entity as defined under the HD Act",null,null,"Program Income"]
[null,null,null,"A 501 ( c ) 3"]
[null,null,null,"Another unit of local government",null,null,"PINC-Local Program Income"]
[null,null,null,"Another public agency"]
[null,null,null,"Select Option",null,"Occupancy","Loan/ Grant"]
[null,null,null,"Subrecipient",null,"Select Option"]
[null,null,null,"Admin Contractor/Program Operator",null,"Owner","CDBG (Grant)"]
[null,null,null,"Jurisdiction Staff",null,"Tenant","CDBG (Loan)"]
[]
[]
[null,null,null,"Program Income",null,"# of Bedrooms"]
[null,null,null,"Revolving Loan Fund",null,"Select Option"]
[null,null,null,null,null,1]
[null,null,null,null,null,2]
[null,null,null,null,null,3]
[null,null,null,"Loan Type",null,4,"General Admin."]
[null,null,null,"Select Option",null,"5 or More"]
[null,null,null,"Amortized",null,null,"(21A) General Administration"]
[null,null,null,"Deferred"]
[null,null,null,"Amortized / Forgivable",null,"Yes/ No","Yes/ No","Yes"]
[null,null,null,"Deferred / Forgivable",null,"Select Option"]
[null,null,null,null,null,"No","No","Yes"]
[null,null,"Select Option",null,null,"Yes","Yes*"]
[null,null,"New"]
[null,null,"Improved",null,null,"# Persons","No"]
[null,null,"No Longer Substandard",null,null,"Select Option","Yes**"]
[null,null,null,null,null,1]
[null,null,null,null,null,2,"Activity Delivery"]
[null,null,"Select Option",null,null,3]
[null,null,"Abused Children","Report Income Levels as \"Extremely Low Income\"",null,4,"Activity Delivery"]
[null,null,"Battered Spouses","Report Income Levels as \"Low Income\"",null,5]
[null,null,"Severely Disable Adults","Report Income Levels as \"Low Income\"",null,6,"Type of Household"]
[null,null,"Homeless Persons","Report Income Levels as \"Extremely Low Income\"",null,7,"Select Option"]
[null,null,"Persons With AIDS","Report Income Levels as \"Low Income\"",null,8,"Single/ Non-Elderly"]
[null,null,"Migrant Farm Workers","Report Income Levels as \"Low Income\"",null,"Vac","Elderly"]
[null,null,"Illiterate Adults","Report Income Levels as \"Low Income\"",null,null,"Related/ Single Parent"]
[null,null,"Elderly","If assistance is to acquire, construct, convert, and/or rehabilitate a senior center or to pay for providing center-based senior services, report the beneficiaries as \"Moderate Income\".\nIf assistance is for other services (not center-based), report the elderly beneficiaries as \"Low Income\".",null,null,"Related/Two Parent"]
[null,null,null,null,null,null,"Other"]
[]
[null,"County Code",null,"Activity Matrix Code",null,null,"Rental Assistance"]
[null,"Select Option",null,"Select Option",null,null,"Select Option"]
[null,"001 Alameda",null,"03T - Operating Cost of Homeless/AIDS Patient Programs",null,null,"HOME TBRA"]
[null,"003 Alpine",null,"05 - Other Public Services",null,null,"Sect. 8"]
[null,"005 Amador",null,"05A - Senior Services",null,null,"Other"]
[null,"007 Butte",null,"05B - Handicapped Services",null,null,"None"]
[null,"009 Calaveras",null,"05C - Legal Services",null,null,"Vacant"]
[null,"011 Colusa",null,"05D - Youth Services",null,null,"Project Based"]
[null,"013 Contra Costa",null,"05E - Transportation Services"]
[null,"015 Del Norte",null,"05F - Substance Abuse Services"]
[null,"017 El Dorado",null,"05G - Services for Battered and Abused Spouses"]
[null,"019 Fresno",null,"05H - Employment Training"]
[null,"021 Glenn",null,"05I - Crime Awareness/Prevention"]
[null,"023 Humboldt",null,"05J - Fair Housing Activities (subject to Public Services cap)"]
[null,"025 Imperial",null,"05K - Tenat/Landlord Counseling"]
[null,"027 Inyo",null,"05L - Child Care Services"]
[null,"029 Kern",null,"05M - Health Services"]
[null,"031 Kings",null,"05N - Services for Abused and Neglected Children"]
[null,"033 Lake",null,"05O - Mental Health Services"]
[null,"035 Lassen",null,"05P - Screening for Lead Based Paint/Lead Hazards"]
[null,"037 Los Angeles",null,"05Q - Subsistence Payments"]
[null,"039 Madera",null,"05T - Security Deposits"]
[null,"041 Marin",null,"05U - Housing Counseling"]
[null,"043 Mariposa",null,"05V - Neighborhood Cleanups"]
[null,"045 Mendocino",null,"05W - Food Banks"]
[null,"047 Merced",null,"15 - Code Enforcement"]
[null,"049 Modoc"]
[null,"051 Mono"]
[null,"053 Monterey"]
[null,"055 Napa"]
[null,"057 Nevada"]
[null,"059 Orange"]
[null,"061 Placer"]
[null,"063 Plumas"]
[null,"065 Riverside"]
[null,"067 Sacramento"]
[null,"069 San Benito"]
[null,"071 San Bernardino"]
[null,"073 San Diego"]
[null,"075 San Francisco"]
[null,"077 San Joaquin"]
[null,"079 San Luis Obispo"]
[null,"081 San Mateo"]
[null,"083 Santa Barbara"]
[null,"085 Santa Clara"]
[null,"087 Santa Cruz"]
[null,"089 Shasta"]
[null,"091 Sierra"]
[null,"093 Siskiyou"]
[null,"095 Solano"]
[null,"097 Sonoma"]
[null,"099 Stanislaus"]
[null,"101 Sutter"]
[null,"103 Tehama"]
[null,"105 Trinity"]
[null,"107 Tulare"]
[null,"109 Tuolumne"]
[null,"111 Ventura"]
[null,"113 Yolo"]
[null,"115 Yuba"]

{"sheet":"Data Validation","index":3,"n_rows":12,"n_cols":9,"rows_kept":12,"cut":false,"hidden":true,"merged":[]}
[]
["Category1",null,null,null,null,null,null,null,"SELECT OPTION"]
["A 105 (a) (15) entity as defined under the Housing & Development Act",null,null,null,null,null,null,null,"White "]
["Another unit of local Government",null,null,null,null,null,null,null,"Black/African American "]
["Another public Agency",null,null,null,null,null,null,null,"Asian "]
[null,null,null,null,null,null,null,null,"American Indian/Alaskan Native "]
[null,null,null,null,null,null,null,null,"Native Hawaiian/Other Pacific Isl. "]
["SELECT OPTION",null,null,null,null,null,null,null,"Am. Indian/Alaskan Native & White "]
[null,null,null,null,null,null,null,null,"Asian & White "]
[null,null,null,null,null,null,null,null,"Black/African Am. & White "]
[null,null,null,null,null,null,null,null,"Am. Indian/Alaskan & Blk/African "]
[null,null,null,null,null,null,null,null,"Other Multi-Racial "]